[Event "Titled Tuesday Blitz November 08 Early 2022"]
[White "Todev, Simeon"]
[Black "Sernecki, Franciszek"]
[WhiteFideId "2925133"]
[BlackFideId "1169297"]
[WhiteElo "1938"]
[BlackElo "2210"]
[Result "0-1"]
[Round "02"]
[TimeControl "180+1"]
[Date "2022.11.09"]
[WhiteClock "0:00:04"]
[BlackClock "0:00:27"]

1. e4 {[%clk 0:03:00]}  e6 {[%clk 0:02:54]} 2. d4 {[%clk 0:02:57]}  d5 {[%clk 0:02:53]} 3. Nc3 {[%clk 0:02:58]}  Bb4 {[%clk 0:02:52]} 4. e5 {[%clk 0:02:58]}  Ne7 {[%clk 0:02:52]} 5. a3 {[%clk 0:02:55]}  Bxc3+ {[%clk 0:02:52]} 6. bxc3 {[%clk 0:02:56]}  c5 {[%clk 0:02:53]} 7. Qg4 {[%clk 0:02:49]}  g6 {[%clk 0:02:45]} 8. h4 {[%clk 0:02:47]}  Qa5 {[%clk 0:02:43]} 9. Bd2 {[%clk 0:02:45]}  h5 {[%clk 0:02:44]} 10. Qf3 {[%clk 0:02:42]}  Qa4 {[%clk 0:02:45]} 11. Qf6 {[%clk 0:02:36]}  Rg8 {[%clk 0:02:39]} 12. Nf3 {[%clk 0:02:09]}  Qxc2 {[%clk 0:02:28]} 13. Bb5+ {[%clk 0:02:09]}  Bd7 {[%clk 0:02:23]} 14. Bxd7+ {[%clk 0:01:51]}  Nxd7 {[%clk 0:02:23]} 15. Qf4 {[%clk 0:01:50]}  Nf5 {[%clk 0:01:11]} 16. O-O {[%clk 0:01:42]}  O-O-O {[%clk 0:01:10]} 17. Be3 {[%clk 0:01:34]}  Kb8 {[%clk 0:01:06]} 18. Rfc1 {[%clk 0:01:30]}  Qe4 {[%clk 0:01:04]} 19. Qxe4 {[%clk 0:01:30]}  dxe4 {[%clk 0:01:05]} 20. Ng5 {[%clk 0:01:31]}  Rgf8 {[%clk 0:00:42]} 21. Nxe4 {[%clk 0:01:26]}  cxd4 {[%clk 0:00:42]} 22. cxd4 {[%clk 0:01:27]}  Nb6 {[%clk 0:00:41]} 23. Rd1 {[%clk 0:01:14]}  Nd5 {[%clk 0:00:39]} 24. Bg5 {[%clk 0:01:12]}  Rc8 {[%clk 0:00:39]} 25. Rac1 {[%clk 0:01:04]}  Rxc1 {[%clk 0:00:38]} 26. Rxc1 {[%clk 0:01:05]}  Rc8 {[%clk 0:00:39]} 27. Nc5 {[%clk 0:01:04]}  b6 {[%clk 0:00:35]} 28. Nb3 {[%clk 0:00:52]}  Rxc1+ {[%clk 0:00:34]} 29. Bxc1 {[%clk 0:00:51]}  Nxh4 {[%clk 0:00:30]} 30. f3 {[%clk 0:00:51]}  Nf5 {[%clk 0:00:30]} 31. Kf2 {[%clk 0:00:51]}  h4 {[%clk 0:00:30]} 32. Bg5 {[%clk 0:00:49]}  a5 {[%clk 0:00:28]} 33. a4 {[%clk 0:00:37]}  Nc3 {[%clk 0:00:27]} 34. Nd2 {[%clk 0:00:20]}  Nxa4 {[%clk 0:00:27]} 35. Nc4 {[%clk 0:00:20]}  Kc7 {[%clk 0:00:24]} 36. Bd2 {[%clk 0:00:14]}  Nxd4 {[%clk 0:00:22]} 37. Ke3 {[%clk 0:00:14]}  Nb3 {[%clk 0:00:19]} 38. Be1 {[%clk 0:00:13]}  Nac5 {[%clk 0:00:19]} 39. Bxh4 {[%clk 0:00:09]}  a4 {[%clk 0:00:19]} 40. Be1 {[%clk 0:00:09]}  b5 {[%clk 0:00:19]} 41. Na3 {[%clk 0:00:09]}  Kc6 {[%clk 0:00:20]} 42. Bb4 {[%clk 0:00:08]}  Nd7 {[%clk 0:00:19]} 43. Bd6 {[%clk 0:00:08]}  Nbc5 {[%clk 0:00:19]} 44. Kd4 {[%clk 0:00:07]}  Na6 {[%clk 0:00:18]} 45. Nc2 {[%clk 0:00:07]}  Nb6 {[%clk 0:00:18]} 46. Na3 {[%clk 0:00:06]}  Nd5 {[%clk 0:00:18]} 47. Nc2 {[%clk 0:00:04]}  b4 {[%clk 0:00:19]} 48. Kc4 {[%clk 0:00:05]}  b3 {[%clk 0:00:19]} 49. Na3 {[%clk 0:00:05]}  Nb6+ {[%clk 0:00:20]} 50. Kc3 {[%clk 0:00:05]}  Kd5 {[%clk 0:00:20]} 51. Nb5 {[%clk 0:00:04]}  Nc5 {[%clk 0:00:20]} 52. Nc7+ {[%clk 0:00:04]}  Kc6 {[%clk 0:00:21]} 53. Bxc5 {[%clk 0:00:03]}  Kxc5 {[%clk 0:00:21]} 54. Na6+ {[%clk 0:00:04]}  Kd5 {[%clk 0:00:21]} 55. f4 {[%clk 0:00:04]}  Ke4 {[%clk 0:00:21]} 56. g3 {[%clk 0:00:04]}  Nd5+ {[%clk 0:00:21]} 57. Kb2 {[%clk 0:00:03]}  Kf3 {[%clk 0:00:22]} 58. Nc5 {[%clk 0:00:04]}  Kxg3 {[%clk 0:00:22]} 59. Nxa4 {[%clk 0:00:03]}  Kxf4 {[%clk 0:00:23]} 60. Kxb3 {[%clk 0:00:03]}  Kxe5 {[%clk 0:00:24]} 61. Nc5 {[%clk 0:00:04]}  Kf4 {[%clk 0:00:24]} 62. Kc4 {[%clk 0:00:05]}  g5 {[%clk 0:00:25]} 63. Kd3 {[%clk 0:00:06]}  g4 {[%clk 0:00:25]} 64. Ke2 {[%clk 0:00:06]}  g3 {[%clk 0:00:26]} 65. Nd3+ {[%clk 0:00:07]}  Kg4 {[%clk 0:00:26]} 66. Ne5+ {[%clk 0:00:07]}  Kh3 {[%clk 0:00:27]} 67. Nxf7 {[%clk 0:00:07]}  g2 {[%clk 0:00:28]} 68. Ng5+ {[%clk 0:00:08]}  Kh2 {[%clk 0:00:28]} 69. Nf3+ {[%clk 0:00:08]}  Kh1 {[%clk 0:00:29]} 70. Kf2 {[%clk 0:00:08]}  Nf4 {[%clk 0:00:29]} 71. Ke3 {[%clk 0:00:05]}  Nh3 {[%clk 0:00:27]} 72. Ke4 {[%clk 0:00:04]}  Ng5+ {[%clk 0:00:27]} 73. Nxg5 {[%clk 0:00:04]}  g1=Q {[%clk 0:00:27]} 74. Ke5 {[%clk 0:00:04]}  Qxg5+ {[%clk 0:00:27]} 0-1


[Site "https://www.chess.com"]

[Event "Titled Tuesday Blitz November 08 Early 2022"]
[White "Tohirjonova, Hulkar"]
[Black "Csonka, Balazs"]
[WhiteFideId "14202247"]
[BlackFideId "742910"]
[WhiteElo "2144"]
[BlackElo "2404"]
[Result "0-1"]
[Round "02"]
[TimeControl "180+1"]
[Date "2022.11.09"]
[WhiteClock "0:01:01"]
[BlackClock "0:00:24"]

1. e4 {[%clk 0:02:53]}  e5 {[%clk 0:02:59]} 2. d4 {[%clk 0:02:53]}  exd4 {[%clk 0:02:57]} 3. Qxd4 {[%clk 0:02:54]}  Nc6 {[%clk 0:02:56]} 4. Qe3 {[%clk 0:02:54]}  Nf6 {[%clk 0:02:56]} 5. Nc3 {[%clk 0:02:54]}  Bb4 {[%clk 0:02:56]} 6. Bd2 {[%clk 0:02:54]}  O-O {[%clk 0:02:55]} 7. O-O-O {[%clk 0:02:53]}  Re8 {[%clk 0:02:55]} 8. Qg3 {[%clk 0:02:53]}  Nxe4 {[%clk 0:02:35]} 9. Nxe4 {[%clk 0:02:53]}  Rxe4 {[%clk 0:02:36]} 10. c3 {[%clk 0:02:53]}  Be7 {[%clk 0:02:24]} 11. Bd3 {[%clk 0:02:52]}  Bh4 {[%clk 0:02:11]} 12. Qf3 {[%clk 0:02:46]}  Re8 {[%clk 0:02:05]} 13. Nh3 {[%clk 0:02:17]}  Ne5 {[%clk 0:01:38]} 14. Qe2 {[%clk 0:02:16]}  d5 {[%clk 0:01:31]} 15. g3 {[%clk 0:02:12]}  Bxh3 {[%clk 0:01:20]} 16. gxh4 {[%clk 0:02:05]}  Bg4 {[%clk 0:01:18]} 17. Qf1 {[%clk 0:02:04]}  Bxd1 {[%clk 0:01:14]} 18. Kxd1 {[%clk 0:02:03]}  Nxd3 {[%clk 0:01:06]} 19. Qxd3 {[%clk 0:02:03]}  Qxh4 {[%clk 0:01:07]} 20. Kc2 {[%clk 0:01:50]}  Qe4 {[%clk 0:01:03]} 21. Rg1 {[%clk 0:01:48]}  Qxd3+ {[%clk 0:00:46]} 22. Kxd3 {[%clk 0:01:48]}  Re6 {[%clk 0:00:46]} 23. b4 {[%clk 0:01:42]}  a5 {[%clk 0:00:42]} 24. a3 {[%clk 0:01:41]}  axb4 {[%clk 0:00:42]} 25. axb4 {[%clk 0:01:41]}  Ra2 {[%clk 0:00:42]} 26. b5 {[%clk 0:01:35]}  f6 {[%clk 0:00:42]} 27. Rg4 {[%clk 0:01:30]}  Kf7 {[%clk 0:00:40]} 28. h4 {[%clk 0:01:25]}  c5 {[%clk 0:00:38]} 29. bxc6 {[%clk 0:01:22]}  bxc6 {[%clk 0:00:39]} 30. h5 {[%clk 0:01:21]}  c5 {[%clk 0:00:36]} 31. h6 {[%clk 0:01:20]}  c4+ {[%clk 0:00:35]} 32. Kd4 {[%clk 0:01:15]}  Rxd2+ {[%clk 0:00:35]} 33. Kc5 {[%clk 0:01:15]}  gxh6 {[%clk 0:00:35]} 34. Rh4 {[%clk 0:01:14]}  d4 {[%clk 0:00:34]} 35. Kxc4 {[%clk 0:01:08]}  Rc6+ {[%clk 0:00:31]} 36. Kb5 {[%clk 0:01:03]}  Rxc3 {[%clk 0:00:29]} 37. Rxh6 {[%clk 0:01:01]}  Rb2+ {[%clk 0:00:29]} 38. Ka4 {[%clk 0:01:01]}  Rc1 {[%clk 0:00:24]} 0-1


[Site "https://www.chess.com"]

[Event "Titled Tuesday Blitz November 08 Early 2022"]
[White "Tokhirjonova, Gulrukhbegim"]
[Black "Grot, Blazej"]
[WhiteFideId "14203626"]
[BlackFideId "21835845"]
[WhiteElo "2236"]
[BlackElo "1822"]
[Result "1-0"]
[Round "02"]
[TimeControl "180+1"]
[Date "2022.11.09"]
[WhiteClock "0:00:42"]
[BlackClock "0:00:02"]

1. e4 {[%clk 0:03:00]}  c5 {[%clk 0:02:59]} 2. Nf3 {[%clk 0:02:59]}  e6 {[%clk 0:03:00]} 3. d4 {[%clk 0:03:00]}  cxd4 {[%clk 0:03:01]} 4. Nxd4 {[%clk 0:03:00]}  Nc6 {[%clk 0:03:01]} 5. Nc3 {[%clk 0:03:00]}  Qc7 {[%clk 0:03:00]} 6. Be2 {[%clk 0:02:57]}  a6 {[%clk 0:03:00]} 7. Be3 {[%clk 0:02:57]}  Nf6 {[%clk 0:03:00]} 8. O-O {[%clk 0:02:47]}  Be7 {[%clk 0:02:59]} 9. f4 {[%clk 0:02:36]}  d6 {[%clk 0:02:57]} 10. a4 {[%clk 0:02:35]}  O-O {[%clk 0:02:56]} 11. Kh1 {[%clk 0:02:27]}  b6 {[%clk 0:02:55]} 12. Qe1 {[%clk 0:02:25]}  Bb7 {[%clk 0:02:55]} 13. Bd3 {[%clk 0:02:26]}  Rad8 {[%clk 0:02:46]} 14. Qg3 {[%clk 0:02:23]}  g6 {[%clk 0:02:23]} 15. Rae1 {[%clk 0:02:22]}  Rfe8 {[%clk 0:02:20]} 16. f5 {[%clk 0:02:16]}  Nxd4 {[%clk 0:02:18]} 17. Bxd4 {[%clk 0:02:17]}  e5 {[%clk 0:02:17]} 18. Be3 {[%clk 0:02:10]}  Rf8 {[%clk 0:02:12]} 19. Bh6 {[%clk 0:02:08]}  Rfe8 {[%clk 0:02:08]} 20. Bg5 {[%clk 0:02:08]}  Rf8 {[%clk 0:02:01]} 21. Qh4 {[%clk 0:02:07]}  Kg7 {[%clk 0:01:11]} 22. Bh6+ {[%clk 0:02:00]}  Kg8 {[%clk 0:01:10]} 23. Bxf8 {[%clk 0:02:01]}  Rxf8 {[%clk 0:01:08]} 24. fxg6 {[%clk 0:01:55]}  fxg6 {[%clk 0:01:06]} 25. Qg3 {[%clk 0:01:54]}  Kg7 {[%clk 0:01:00]} 26. Rf3 {[%clk 0:01:36]}  Nh5 {[%clk 0:00:59]} 27. Qf2 {[%clk 0:01:36]}  Rxf3 {[%clk 0:00:56]} 28. Qxf3 {[%clk 0:01:36]}  Nf4 {[%clk 0:00:53]} 29. Bf1 {[%clk 0:01:36]}  Qc5 {[%clk 0:00:32]} 30. g3 {[%clk 0:01:32]}  Ne6 {[%clk 0:00:31]} 31. Bg2 {[%clk 0:01:21]}  Ng5 {[%clk 0:00:31]} 32. Qg4 {[%clk 0:01:16]}  Bc8 {[%clk 0:00:19]} 33. Qd1 {[%clk 0:01:15]}  Be6 {[%clk 0:00:17]} 34. Rf1 {[%clk 0:01:16]}  b5 {[%clk 0:00:17]} 35. axb5 {[%clk 0:01:14]}  axb5 {[%clk 0:00:17]} 36. Nd5 {[%clk 0:00:55]}  Bd8 {[%clk 0:00:15]} 37. b4 {[%clk 0:00:52]}  Qc4 {[%clk 0:00:11]} 38. Qd3 {[%clk 0:00:45]}  Bxd5 {[%clk 0:00:06]} 39. Qxd5 {[%clk 0:00:42]}  Qxd5 {[%clk 0:00:06]} 40. exd5 {[%clk 0:00:42]}  Nf7 {[%clk 0:00:02]} 41. Ra1 {[%clk 0:00:42]}  Nh6 {[%clk 0:00:02]} 42. Ra7+ {[%clk 0:00:42]} 1-0


[Site "https://www.chess.com"]

[Event "Titled Tuesday Blitz November 08 Early 2022"]
[White "Turzo, Attila"]
[Black "Osmonbekov, Talaibek"]
[WhiteFideId "704954"]
[BlackFideId "2017253"]
[WhiteElo "2517"]
[BlackElo "2135"]
[Result "1-0"]
[Round "02"]
[TimeControl "180+1"]
[Date "2022.11.09"]
[WhiteClock "0:01:27"]
[BlackClock "0:00:21"]

1. d4 {[%clk 0:03:00]}  e6 {[%clk 0:02:59]} 2. c4 {[%clk 0:03:00]}  f5 {[%clk 0:02:59]} 3. Nf3 {[%clk 0:02:59]}  Nf6 {[%clk 0:02:59]} 4. g3 {[%clk 0:02:59]}  Be7 {[%clk 0:02:59]} 5. Bg2 {[%clk 0:03:00]}  O-O {[%clk 0:03:00]} 6. O-O {[%clk 0:03:00]}  d6 {[%clk 0:03:01]} 7. Nc3 {[%clk 0:03:00]}  a5 {[%clk 0:03:01]} 8. Re1 {[%clk 0:03:00]}  Ne4 {[%clk 0:03:00]} 9. Qc2 {[%clk 0:02:59]}  Nxc3 {[%clk 0:02:59]} 10. Qxc3 {[%clk 0:03:00]}  Nc6 {[%clk 0:02:46]} 11. e4 {[%clk 0:02:59]}  e5 {[%clk 0:02:45]} 12. dxe5 {[%clk 0:02:55]}  dxe5 {[%clk 0:02:44]} 13. exf5 {[%clk 0:02:53]}  Bb4 {[%clk 0:02:40]} 14. Qe3 {[%clk 0:02:48]}  Bxe1 {[%clk 0:02:38]} 15. Qxe1 {[%clk 0:02:49]}  Bxf5 {[%clk 0:02:33]} 16. Bg5 {[%clk 0:02:48]}  Qe8 {[%clk 0:02:21]} 17. Qc3 {[%clk 0:02:43]}  h6 {[%clk 0:02:18]} 18. Be3 {[%clk 0:02:41]}  Rd8 {[%clk 0:02:15]} 19. Re1 {[%clk 0:02:32]}  Rd3 {[%clk 0:02:12]} 20. Qc1 {[%clk 0:02:28]}  Be4 {[%clk 0:02:06]} 21. Bf1 {[%clk 0:02:19]}  Rxf3 {[%clk 0:02:01]} 22. Bxd3 {[%clk 0:02:17]}  Bxd3 {[%clk 0:02:01]} 23. Qd1 {[%clk 0:02:10]}  e4 {[%clk 0:02:00]} 24. Bxh6 {[%clk 0:02:08]}  Qh5 {[%clk 0:01:44]} 25. Bf4 {[%clk 0:01:57]}  Ne5 {[%clk 0:01:35]} 26. Bxe5 {[%clk 0:01:55]}  Qxe5 {[%clk 0:01:31]} 27. Qxf3 {[%clk 0:01:55]}  Qxb2 {[%clk 0:01:23]} 28. Qf4 {[%clk 0:01:31]}  Qc3 {[%clk 0:01:15]} 29. Qe3 {[%clk 0:01:28]}  Qxc4 {[%clk 0:01:03]} 30. f3 {[%clk 0:01:28]}  exf3 {[%clk 0:00:58]} 31. Qe8+ {[%clk 0:01:26]}  Kh7 {[%clk 0:00:21]} 32. Qh5+ {[%clk 0:01:27]} 1-0


[Site "https://www.chess.com"]

[Event "Titled Tuesday Blitz November 08 Early 2022"]
[White "Vlassov, Nikolai"]
[Black "Timofeev, Artyom"]
[WhiteFideId "4103360"]
[BlackFideId "4140419"]
[WhiteElo "2324"]
[BlackElo "2586"]
[Result "0-1"]
[Round "02"]
[TimeControl "180+1"]
[Date "2022.11.09"]
[WhiteClock "0:00:01"]
[BlackClock "0:00:09"]

1. e4 {[%clk 0:03:00]}  c5 {[%clk 0:03:00]} 2. c3 {[%clk 0:03:00]}  Nf6 {[%clk 0:02:58]} 3. e5 {[%clk 0:03:00]}  Nd5 {[%clk 0:02:58]} 4. d4 {[%clk 0:03:00]}  cxd4 {[%clk 0:02:58]} 5. cxd4 {[%clk 0:03:00]}  d6 {[%clk 0:02:57]} 6. Bc4 {[%clk 0:03:00]}  Nb6 {[%clk 0:02:57]} 7. Bb3 {[%clk 0:03:00]}  dxe5 {[%clk 0:02:52]} 8. Qh5 {[%clk 0:03:00]}  e6 {[%clk 0:02:49]} 9. dxe5 {[%clk 0:03:00]}  Nc6 {[%clk 0:02:41]} 10. Nc3 {[%clk 0:03:00]}  g6 {[%clk 0:02:39]} 11. Qg5 {[%clk 0:02:59]}  Qxg5 {[%clk 0:02:34]} 12. Bxg5 {[%clk 0:02:57]}  Be7 {[%clk 0:02:35]} 13. Bxe7 {[%clk 0:02:52]}  Kxe7 {[%clk 0:02:34]} 14. f4 {[%clk 0:02:50]}  Bd7 {[%clk 0:02:27]} 15. Nf3 {[%clk 0:02:49]}  Na5 {[%clk 0:02:27]} 16. Nd4 {[%clk 0:02:46]}  Rhd8 {[%clk 0:02:21]} 17. O-O-O {[%clk 0:02:42]}  Rac8 {[%clk 0:02:20]} 18. Kb1 {[%clk 0:02:42]}  Nxb3 {[%clk 0:02:15]} 19. axb3 {[%clk 0:02:41]}  Bc6 {[%clk 0:02:12]} 20. Nxc6+ {[%clk 0:02:39]}  Rxc6 {[%clk 0:02:10]} 21. Rxd8 {[%clk 0:02:39]}  Kxd8 {[%clk 0:02:10]} 22. Rd1+ {[%clk 0:02:39]}  Ke7 {[%clk 0:02:10]} 23. g3 {[%clk 0:02:35]}  a6 {[%clk 0:02:04]} 24. Rd4 {[%clk 0:02:28]}  Rc7 {[%clk 0:02:01]} 25. Kc2 {[%clk 0:02:27]}  f6 {[%clk 0:01:46]} 26. exf6+ {[%clk 0:02:23]}  Kxf6 {[%clk 0:01:46]} 27. Kd3 {[%clk 0:02:21]}  Ke7 {[%clk 0:01:44]} 28. h4 {[%clk 0:02:01]}  Nd7 {[%clk 0:01:39]} 29. Ne4 {[%clk 0:01:43]}  Rc1 {[%clk 0:01:37]} 30. Rc4 {[%clk 0:01:24]}  Rxc4 {[%clk 0:01:20]} 31. bxc4 {[%clk 0:01:21]}  e5 {[%clk 0:01:16]} 32. fxe5 {[%clk 0:01:09]}  Nxe5+ {[%clk 0:01:16]} 33. Kd4 {[%clk 0:01:09]}  Nc6+ {[%clk 0:00:52]} 34. Kc5 {[%clk 0:01:08]}  Ne5 {[%clk 0:00:52]} 35. b3 {[%clk 0:01:04]}  Nd7+ {[%clk 0:00:47]} 36. Kd5 {[%clk 0:01:03]}  Nb6+ {[%clk 0:00:47]} 37. Kd4 {[%clk 0:00:58]}  Nc8 {[%clk 0:00:44]} 38. Nc5 {[%clk 0:00:54]}  Nd6 {[%clk 0:00:42]} 39. Kd5 {[%clk 0:00:50]}  h5 {[%clk 0:00:41]} 40. b4 {[%clk 0:00:41]}  b5 {[%clk 0:00:32]} 41. cxb5 {[%clk 0:00:29]}  axb5 {[%clk 0:00:31]} 42. Kc6 {[%clk 0:00:22]}  Nf5 {[%clk 0:00:23]} 43. Ne4 {[%clk 0:00:20]}  Ke6 {[%clk 0:00:20]} 44. Kxb5 {[%clk 0:00:19]}  Ke5 {[%clk 0:00:20]} 45. Ng5 {[%clk 0:00:16]}  Nxg3 {[%clk 0:00:20]} 46. Kc6 {[%clk 0:00:16]}  Nf5 {[%clk 0:00:20]} 47. b5 {[%clk 0:00:17]}  Nd4+ {[%clk 0:00:20]} 48. Kc5 {[%clk 0:00:17]}  Nxb5 {[%clk 0:00:20]} 49. Kxb5 {[%clk 0:00:16]}  Kf4 {[%clk 0:00:21]} 50. Nh7 {[%clk 0:00:14]}  Kg4 {[%clk 0:00:19]} 51. Nf8 {[%clk 0:00:14]}  g5 {[%clk 0:00:14]} 52. hxg5 {[%clk 0:00:12]}  Kxg5 {[%clk 0:00:15]} 53. Ne6+ {[%clk 0:00:11]}  Kg4 {[%clk 0:00:15]} 54. Nc5 {[%clk 0:00:01]}  Kf3 {[%clk 0:00:13]} 55. Ne6 {[%clk 0:00:01]}  Kg4 {[%clk 0:00:09]} 56. Nc5 {[%clk 0:00:01]}  h4 {[%clk 0:00:09]} 0-1


[Site "https://www.chess.com"]

[Event "Titled Tuesday Blitz November 08 Early 2022"]
[White "Xiong, Jeffery"]
[Black "Noboa Silva, Kevin"]
[WhiteFideId "2047640"]
[BlackFideId "3618471"]
[WhiteElo "2725"]
[BlackElo "2178"]
[Result "1-0"]
[Round "02"]
[TimeControl "180+1"]
[Date "2022.11.08"]
[WhiteClock "0:00:57"]
[BlackClock "0:00:12"]

1. f4 {[%clk 0:02:56]}  Nf6 {[%clk 0:02:57]} 2. Nf3 {[%clk 0:02:53]}  d6 {[%clk 0:02:54]} 3. g3 {[%clk 0:02:53]}  Nbd7 {[%clk 0:02:54]} 4. Bg2 {[%clk 0:02:53]}  e5 {[%clk 0:02:54]} 5. d3 {[%clk 0:02:52]}  Be7 {[%clk 0:02:54]} 6. e4 {[%clk 0:02:52]}  O-O {[%clk 0:02:54]} 7. f5 {[%clk 0:02:51]}  d5 {[%clk 0:02:50]} 8. Nc3 {[%clk 0:02:49]}  dxe4 {[%clk 0:02:49]} 9. dxe4 {[%clk 0:02:50]}  Bb4 {[%clk 0:02:45]} 10. Qe2 {[%clk 0:02:45]}  Nc5 {[%clk 0:02:43]} 11. Nd2 {[%clk 0:02:38]}  b6 {[%clk 0:02:17]} 12. Nb3 {[%clk 0:02:08]}  Ba6 {[%clk 0:02:01]} 13. Qe3 {[%clk 0:02:06]}  Bb7 {[%clk 0:01:55]} 14. Nxc5 {[%clk 0:02:02]}  Bxc5 {[%clk 0:01:55]} 15. Qe2 {[%clk 0:02:03]}  Qd4 {[%clk 0:01:37]} 16. Bd2 {[%clk 0:01:58]}  Rad8 {[%clk 0:01:21]} 17. O-O-O {[%clk 0:01:55]}  Qf2 {[%clk 0:01:20]} 18. Qxf2 {[%clk 0:01:51]}  Bxf2 {[%clk 0:01:21]} 19. Bg5 {[%clk 0:01:36]}  Bd4 {[%clk 0:01:11]} 20. Nb5 {[%clk 0:01:33]}  h6 {[%clk 0:00:44]} 21. Bxf6 {[%clk 0:01:27]}  gxf6 {[%clk 0:00:44]} 22. Nxc7 {[%clk 0:01:22]}  Rd7 {[%clk 0:00:41]} 23. Nd5 {[%clk 0:01:17]}  Bxd5 {[%clk 0:00:34]} 24. exd5 {[%clk 0:01:18]}  Rc8 {[%clk 0:00:34]} 25. c3 {[%clk 0:01:18]}  b5 {[%clk 0:00:29]} 26. Kb1 {[%clk 0:01:18]}  Bb6 {[%clk 0:00:29]} 27. Rhe1 {[%clk 0:01:16]}  Rd6 {[%clk 0:00:29]} 28. Re4 {[%clk 0:01:16]}  a5 {[%clk 0:00:29]} 29. a4 {[%clk 0:01:14]}  bxa4 {[%clk 0:00:28]} 30. Rxa4 {[%clk 0:01:15]}  Rb8 {[%clk 0:00:28]} 31. Kc2 {[%clk 0:01:15]}  Kg7 {[%clk 0:00:27]} 32. Rc4 {[%clk 0:01:14]}  Kf8 {[%clk 0:00:21]} 33. Ra1 {[%clk 0:01:09]}  Ke7 {[%clk 0:00:21]} 34. Raa4 {[%clk 0:01:10]}  Kd7 {[%clk 0:00:19]} 35. Rc6 {[%clk 0:01:09]}  Rxc6 {[%clk 0:00:15]} 36. dxc6+ {[%clk 0:01:10]}  Kc7 {[%clk 0:00:15]} 37. Rg4 {[%clk 0:01:09]}  Rf8 {[%clk 0:00:14]} 38. Rg7 {[%clk 0:01:08]}  Bg1 {[%clk 0:00:13]} 39. h3 {[%clk 0:01:08]}  Bh2 {[%clk 0:00:13]} 40. Kb3 {[%clk 0:01:05]}  Kd6 {[%clk 0:00:13]} 41. Ka4 {[%clk 0:01:04]}  Bg1 {[%clk 0:00:12]} 42. Kxa5 {[%clk 0:00:58]}  Ra8+ {[%clk 0:00:12]} 43. Kb5 {[%clk 0:00:58]}  Rb8+ {[%clk 0:00:12]} 44. Kc4 {[%clk 0:00:58]}  Rxb2 {[%clk 0:00:12]} 45. Bd5 {[%clk 0:00:57]} 1-0


[Site "https://www.chess.com"]

[Event "Titled Tuesday Blitz November 08 Early 2022"]
[White "Yeremyan, Alen"]
[Black "Sihlongonyane, Sikhanyiso"]
[WhiteFideId "13308998"]
[BlackFideId "20700784"]
[WhiteElo "2159"]
[BlackElo "1574"]
[Result "1-0"]
[Round "02"]
[TimeControl "180+1"]
[Date "2022.11.09"]
[WhiteClock "0:02:06"]
[BlackClock "0:00:57"]

1. c4 {[%clk 0:03:00]}  Nf6 {[%clk 0:02:59]} 2. Nc3 {[%clk 0:03:00]}  e6 {[%clk 0:02:58]} 3. e4 {[%clk 0:03:00]}  d5 {[%clk 0:02:57]} 4. cxd5 {[%clk 0:03:01]}  exd5 {[%clk 0:02:57]} 5. e5 {[%clk 0:03:02]}  Ne4 {[%clk 0:02:51]} 6. Nxe4 {[%clk 0:03:01]}  dxe4 {[%clk 0:02:50]} 7. Qa4+ {[%clk 0:03:02]}  Bd7 {[%clk 0:02:14]} 8. Qxe4 {[%clk 0:03:01]}  Bc6 {[%clk 0:02:14]} 9. Qe3 {[%clk 0:02:56]}  Qd5 {[%clk 0:02:04]} 10. Nf3 {[%clk 0:02:53]}  Bc5 {[%clk 0:02:00]} 11. d4 {[%clk 0:02:53]}  Bb4+ {[%clk 0:01:55]} 12. Bd2 {[%clk 0:02:52]}  Bxd2+ {[%clk 0:01:54]} 13. Nxd2 {[%clk 0:02:39]}  O-O {[%clk 0:01:49]} 14. Bc4 {[%clk 0:02:40]}  Qxg2 {[%clk 0:01:48]} 15. O-O-O {[%clk 0:02:40]}  Qxh1 {[%clk 0:01:32]} 16. Rxh1 {[%clk 0:02:41]}  Bxh1 {[%clk 0:01:32]} 17. f3 {[%clk 0:02:41]}  Bg2 {[%clk 0:01:21]} 18. Ne4 {[%clk 0:02:34]}  Bh3 {[%clk 0:01:15]} 19. Ng5 {[%clk 0:02:22]}  Bf5 {[%clk 0:01:12]} 20. Nxf7 {[%clk 0:02:08]}  Rxf7 {[%clk 0:00:58]} 21. Bxf7+ {[%clk 0:02:05]}  Kxf7 {[%clk 0:00:57]} 22. Qb3+ {[%clk 0:02:06]} 1-0


[Site "https://www.chess.com"]

[Event "Titled Tuesday Blitz November 08 Early 2022"]
[White "Zaragatski, Ilja"]
[Black "Fajdetic, Hrvoje"]
[WhiteFideId "4655192"]
[BlackFideId "14501945"]
[WhiteElo "2460"]
[BlackElo "2172"]
[Result "1-0"]
[Round "02"]
[TimeControl "180+1"]
[Date "2022.11.09"]
[WhiteClock "0:00:24"]
[BlackClock "0:00:28"]

1. g3 {[%clk 0:03:00]}  f5 {[%clk 0:02:57]} 2. Bg2 {[%clk 0:02:57]}  Nf6 {[%clk 0:02:57]} 3. d4 {[%clk 0:02:54]}  e6 {[%clk 0:02:57]} 4. Nf3 {[%clk 0:02:53]}  Be7 {[%clk 0:02:57]} 5. O-O {[%clk 0:02:49]}  O-O {[%clk 0:02:58]} 6. Nc3 {[%clk 0:02:47]}  d5 {[%clk 0:02:56]} 7. Bf4 {[%clk 0:02:43]}  c6 {[%clk 0:02:55]} 8. Nb1 {[%clk 0:02:23]}  b6 {[%clk 0:02:38]} 9. Nbd2 {[%clk 0:02:22]}  Nbd7 {[%clk 0:02:36]} 10. c4 {[%clk 0:02:21]}  Bb7 {[%clk 0:02:34]} 11. Rc1 {[%clk 0:02:20]}  Ne4 {[%clk 0:02:34]} 12. Ne5 {[%clk 0:02:19]}  Nxe5 {[%clk 0:02:33]} 13. Bxe5 {[%clk 0:02:19]}  Bf6 {[%clk 0:02:31]} 14. Nf3 {[%clk 0:02:18]}  Kh8 {[%clk 0:02:21]} 15. Bxf6 {[%clk 0:02:11]}  Nxf6 {[%clk 0:02:20]} 16. Ne5 {[%clk 0:02:10]}  Nd7 {[%clk 0:02:18]} 17. Nd3 {[%clk 0:02:10]}  Qf6 {[%clk 0:02:10]} 18. e3 {[%clk 0:02:09]}  g5 {[%clk 0:02:08]} 19. b4 {[%clk 0:01:55]}  a5 {[%clk 0:02:01]} 20. b5 {[%clk 0:01:49]}  dxc4 {[%clk 0:02:01]} 21. bxc6 {[%clk 0:01:47]}  cxd3 {[%clk 0:01:58]} 22. cxb7 {[%clk 0:01:44]}  Rab8 {[%clk 0:01:54]} 23. Qxd3 {[%clk 0:01:34]}  f4 {[%clk 0:01:36]} 24. exf4 {[%clk 0:01:12]}  gxf4 {[%clk 0:01:37]} 25. Rc7 {[%clk 0:01:11]}  Qd8 {[%clk 0:01:37]} 26. Rfc1 {[%clk 0:01:07]}  Nf6 {[%clk 0:01:03]} 27. Rc8 {[%clk 0:01:04]}  Qd6 {[%clk 0:00:58]} 28. R1c6 {[%clk 0:00:49]}  Qd7 {[%clk 0:00:44]} 29. R6c7 {[%clk 0:00:46]}  Qd6 {[%clk 0:00:39]} 30. Rxb8 {[%clk 0:00:38]}  Rxb8 {[%clk 0:00:37]} 31. Rc8+ {[%clk 0:00:37]}  Kg7 {[%clk 0:00:37]} 32. Qc4 {[%clk 0:00:34]}  Nd5 {[%clk 0:00:35]} 33. Rxb8 {[%clk 0:00:25]}  Qxb8 {[%clk 0:00:28]} 34. Qc8 {[%clk 0:00:24]} 1-0


[Site "https://www.chess.com"]